bitfinex/quotes_SOLUSD_20240712
["timestamp","ask_amount","ask_price","bid_price","bid_amount"]
[1720822501371,0.04286699,138.78,138.75,11.7]
[1720822502649,0.04286699,138.78,138.74,11.7]
[1720822503079,0.04286699,138.78,138.72,20.0]
[1720822503276,11.74286699,138.78,138.73,11.7]
[1720822503452,45.0,138.77,138.73,11.7]
[1720822504358,45.0,138.77,138.74,11.7]
[1720822504558,45.04286699,138.78,138.74,11.7]
[1720822505358,0.04286699,138.78,138.74,11.7]
[1720822513183,0.04286699,138.78,138.72,20.0]
[1720822513487,0.04286699,138.78,138.73,11.7]
[1720822513959,0.04286699,138.78,138.72,20.0]
[1720822514279,11.74286699,138.78,138.71,6.1505]
[1720822514486,56.7,138.77,138.71,17.8505]
[1720822515876,30.0,138.75,138.71,17.8505]
[1720822516583,30.0,138.75,138.67,21.3558]
[1720822516780,56.7,138.74,138.69,11.7]
[1720822516962,30.0,138.73,138.7,11.7]
[1720822518364,30.0,138.73,138.71,11.7]
[1720822518660,30.0,138.73,138.7,11.7]
[1720822519085,30.0,138.73,138.71,11.7]
[1720822519268,45.0,138.74,138.71,11.7]
[1720822523793,45.0,138.75,138.71,11.7]
[1720822525377,45.0,138.76,138.72,11.7]
[1720822528297,45.0,138.76,138.71,11.7]
[1720822529176,56.7,138.76,138.71,11.7]
[1720822535475,45.0,138.76,138.71,11.7]
[1720822536095,7.2072,138.75,138.67,21.3558]
[1720822536284,45.0,138.74,138.69,11.7]
[1720822538910,45.0,138.74,138.71,11.7]
[1720822539582,45.0,138.75,138.71,11.7]
[1720822539903,45.0,138.75,138.7,11.7]
[1720822543084,45.0,138.75,138.71,11.7]
[1720822543297,45.0,138.76,138.72,11.7]
[1720822543479,45.0,138.77,138.72,11.7]
[1720822544705,56.7,138.77,138.71,11.7]
[1720822545406,45.0,138.77,138.72,11.7]
[1720822545585,56.7,138.77,138.72,11.7]
[1720822545787,16.33136699,138.78,138.73,11.7]
[1720822546206,28.03136699,138.78,138.73,11.7]
[1720822547001,45.0,138.77,138.67,21.3558]
[1720822547205,56.7,138.77,138.67,21.3558]
[1720822547413,63.9061,138.77,138.67,21.3558]
[1720822547598,11.7,138.76,138.71,11.7]
[1720822547805,45.0,138.75,138.71,11.7]
[1720822549411,45.0,138.75,138.67,21.3558]
[1720822549715,45.0,138.75,138.71,11.7]
[1720822550612,45.0,138.75,138.68,11.7]
[1720822550821,11.7,138.74,138.68,11.7]
[1720822551008,45.0,138.73,138.68,11.7]
[1720822551514,45.0,138.73,138.67,21.3558]
[1720822551714,45.0,138.73,138.69,11.7]
[1720822553917,45.0,138.73,138.67,21.3558]
[1720822554127,45.0,138.73,138.68,31.7]
[1720822554428,56.7,138.73,138.68,31.7]
[1720822554797,45.0,138.73,138.69,11.7]
[1720822555121,45.0,138.73,138.7,11.7]
[1720822555292,45.0,138.74,138.7,11.7]
[1720822555721,45.0,138.75,138.7,11.7]
[1720822557826,16.33136699,138.78,138.68,20.0]
[1720822558002,11.7,138.77,138.72,11.7]
[1720822558400,11.7,138.77,138.71,11.7]
[1720822559117,45.0,138.76,138.71,11.7]
[1720822563841,45.0,138.76,138.68,22.2214]
[1720822563842,45.0,138.76,138.72,11.7]
[1720822564010,45.0,138.76,138.73,11.7]
[1720822564323,45.0,138.77,138.73,11.7]
[1720822565333,45.0,138.77,138.72,11.7]
[1720822567532,45.0,138.76,138.73,11.7]
[1720822567706,45.0,138.77,138.68,22.2214]
[1720822567911,11.7,138.76,138.7,11.7]
[1720822568237,45.0,138.75,138.7,11.7]
[1720822568913,30.0,138.73,138.7,11.7]
[1720822569315,30.0,138.73,138.69,20.0]
[1720822569516,28.08546699,138.78,138.72,11.7]
[1720822569833,45.0,138.77,138.73,11.7]
[1720822571216,45.0,138.77,138.69,20.0]
[1720822571416,11.7,138.76,138.7,11.7]
[1720822571615,45.0,138.75,138.7,11.7]
[1720822571814,45.0,138.75,138.69,20.0]
[1720822572015,45.0,138.75,138.7,11.7]
[1720822572938,45.0,138.75,138.71,11.7]
[1720822573327,45.0,138.76,138.71,11.7]
[1720822575339,45.0,138.76,138.72,11.7]
[1720822575920,45.0,138.77,138.72,11.7]
[1720822576244,56.7,138.77,138.72,11.7]
[1720822576541,45.0,138.77,138.72,11.7]
[1720822577032,56.7,138.77,138.72,11.7]
[1720822578337,45.0,138.77,138.72,11.7]
[1720822579252,45.0,138.77,138.73,11.7]
[1720822582635,45.04286699,138.78,138.73,11.7]
[1720822584926,52.24846699,138.78,138.69,20.0]
[1720822585224,63.94846699,138.78,138.72,11.7]
[1720822585546,7.2062,138.77,138.69,20.0]
[1720822585847,45.0,138.76,138.71,11.7]
[1720822586144,45.0,138.76,138.72,11.7]
[1720822587024,7.24866699,138.78,138.72,11.7]
[1720822587025,45.0,138.77,138.72,11.7]
[1720822587445,45.0,138.77,138.73,11.7]
[1720822588138,45.0,138.77,138.69,20.0]
[1720822588338,45.0,138.77,138.72,11.7]
[1720822589352,45.0,138.77,138.69,20.0]
[1720822589532,45.04286699,138.78,138.73,11.7]
[1720822591138,45.04286699,138.78,138.74,11.7]
[1720822592430,45.04286699,138.78,138.75,11.7]
[1720822594132,45.04286699,138.78,138.74,11.7]
[1720822595824,45.04286699,138.78,138.69,20.0]
[1720822596031,45.04286699,138.78,138.74,11.7]
[1720822598140,45.04286699,138.78,138.69,20.0]
[1720822598340,45.04286699,138.78,138.74,11.7]
[1720822599133,45.04286699,138.78,138.69,20.0]
[1720822599329,45.04286699,138.78,138.74,11.7]
[1720822600041,45.04286699,138.78,138.73,11.7]
[1720822602038,45.04286699,138.78,138.74,11.7]
[1720822619388,45.04286699,138.78,138.75,11.7]
[1720822619559,0.04286699,138.78,138.77,11.7]
[1720822619878,30.04286699,138.78,138.77,11.7]
[1720822620292,0.04286699,138.78,138.77,11.7]
[1720822620594,0.04286699,138.78,138.77,33.14073589]
[1720822621190,0.8577431,138.8,138.78,22.5935]
[1720822621475,0.8577431,138.8,138.79,20.0]
[1720822621781,0.8577431,138.8,138.79,78.5]
[1720822622472,15.0567,138.89,138.79,123.5]
[1720822622684,15.0567,138.89,138.85,11.7]
[1720822623178,0.8577431,138.94,138.88,11.7]
[1720822623383,0.8577431,138.94,138.89,11.7]
[1720822623580,0.8577431,138.94,138.9,11.7]
[1720822623771,0.8577431,138.94,138.91,11.7]
[1720822624399,0.8577431,138.94,138.9,11.7]
[1720822624889,11.7,138.91,138.81,16.1342]
[1720822625098,11.7,138.91,138.85,11.7]
[1720822625268,18.8993,138.91,138.85,11.7]
[1720822625468,11.7,138.91,138.85,11.7]
[1720822625984,30.0,138.89,138.85,11.7]
[1720822628867,30.0,138.89,138.81,16.1342]
[1720822629065,30.0,138.89,138.85,11.7]
[1720822629266,45.0,138.9,138.85,11.7]
[1720822630274,45.0,138.9,138.86,11.7]
[1720822630481,45.0,138.91,138.86,11.7]
[1720822631387,8.0551431,138.94,138.87,11.7]
[1720822631581,56.7,138.93,138.87,11.7]
[1720822631889,11.7,138.93,138.87,11.7]
[1720822632280,11.7,138.92,138.87,11.7]
[1720822633096,11.7,138.93,138.87,11.7]
[1720822633407,45.0,138.92,138.87,11.7]
[1720822634681,56.7,138.93,138.87,11.7]
[1720822635183,56.7,138.93,138.81,16.1342]
[1720822635407,11.7,138.92,138.86,11.7]
[1720822635577,45.0,138.91,138.86,11.7]
[1720822635902,18.9011,138.87,138.75,6.4593]
[1720822636085,56.7,138.86,138.75,6.4593]
[1720822636399,56.7,138.86,138.81,11.7]
[1720822636580,30.0,138.88,138.81,11.7]
[1720822636784,56.7,138.87,138.81,11.7]
[1720822636978,11.7,138.86,138.81,11.7]
[1720822637199,45.0,138.87,138.82,11.7]
[1720822637380,56.7,138.87,138.82,11.7]
[1720822637588,45.0,138.87,138.75,6.4593]
[1720822637900,56.7,138.87,138.82,11.7]
[1720822638695,45.0,138.87,138.77,23.3]
[1720822638878,45.0,138.87,138.78,65.0]
[1720822641376,52.2011,138.87,138.78,20.0]
[1720822641579,45.0,138.87,138.78,20.0]
[1720822641793,30.0,138.88,138.79,39.6612]
[1720822641981,15.0567,138.9,138.8,20.0]
[1720822642787,6.5654,138.93,138.82,6.6054]
[1720822643175,45.0,138.92,138.82,6.6054]
[1720822643478,45.0,138.92,138.83,20.0]
[1720822648803,45.0,138.93,138.83,20.0]
[1720822650419,45.0,138.93,138.84,16.3612]
[1720822650607,45.0,138.93,138.85,20.0]
[1720822653721,7.1998,138.9,138.77,7.52175756]
[1720822653913,10.0,138.91,138.76,18.16928583]
[1720822654230,7.1999,138.89,138.76,18.16928583]
[1720822654435,45.0,138.88,138.76,18.16928583]
[1720822654731,52.1994,138.9,138.78,23.3]
[1720822654935,45.0,138.9,138.79,20.0]
[1720822655301,52.1994,138.9,138.79,20.0]
[1720822661521,52.1994,138.9,138.8,45.0]
[1720822661913,52.1994,138.9,138.81,20.0]
[1720822662230,10.8577431,138.94,138.82,23.1312]
[1720822662431,10.8577431,138.94,138.83,65.0]
[1720822662637,11.64,138.93,138.87,11.64]
[1720822664110,18.0553431,138.94,138.87,11.64]
[1720822664316,11.64,138.93,138.88,11.64]
[1720822664520,18.0553431,138.94,138.83,65.0]
[1720822665037,45.0,138.93,138.83,65.0]
[1720822666729,45.8577431,138.94,138.83,65.0]
[1720822667432,0.8577431,138.94,138.83,65.0]
[1720822669523,0.8577431,138.94,138.87,23.28]
[1720822670034,0.8577431,138.94,138.84,46.4112]
[1720822670656,0.8577431,138.94,138.88,20.0]
[1720822671218,0.8577431,138.94,138.85,20.0]
[1720822673643,0.8577431,138.94,138.91,23.28]
[1720822673842,0.8577431,138.94,138.88,23.28]
[1720822674140,0.8577431,138.94,138.86,23.1312]
[1720822674548,0.8577431,138.94,138.89,20.0]
[1720822675346,0.8577431,138.94,138.87,20.0]
[1720822679042,0.8577431,138.94,138.86,23.1312]
[1720822679433,17.0186431,138.94,138.86,16.545]
[1720822679641,45.0,138.93,138.86,16.545]
[1720822680332,45.0,138.93,138.87,20.0]
[1720822682451,17.0186431,138.94,138.87,20.0]
[1720822682452,0.8577431,138.94,138.87,20.0]
[1720822683051,0.8577431,138.94,138.88,1.43970305]
[1720822684076,0.8577431,138.94,138.92,15.3714]
[1720822684454,0.8577431,138.94,138.93,20.0]
[1720822684851,0.8577431,138.94,138.93,31.63]
[1720822685052,0.8577431,138.94,138.93,11.63]
[1720822685670,0.8577431,138.94,138.92,15.3714]
[1720822685977,0.8577431,138.94,138.93,11.63]
[1720822689051,0.8577431,138.94,138.93,31.63]
[1720822689473,0.8577431,138.94,138.93,33.06900848]
[1720822689661,17.0186431,139.08,138.95,15.3714]
[1720822689980,11.63,139.04,138.98,11.63]
[1720822690349,11.63,139.05,139.0,11.63]
[1720822690668,21.63,139.06,139.0,11.63]
[1720822690858,10.0,139.06,139.0,11.63]
[1720822691046,11.63,139.06,139.0,11.63]
[1720822691249,11.63,139.05,138.95,15.3714]
[1720822691555,11.63,139.04,138.98,11.63]
[1720822691877,11.63,139.04,138.99,11.63]
[1720822692581,45.0,139.03,138.99,11.63]
[1720822693391,45.0,139.03,139.0,11.63]
[1720822693548,45.0,139.04,139.0,11.63]
[1720822693750,11.63,139.01,138.89,21.4648]
[1720822693964,10.0,139.02,138.94,11.63]
[1720822693965,45.0,139.0,138.94,11.63]
[1720822694480,11.63,139.0,138.95,11.63]
[1720822694681,45.0,138.99,138.95,11.63]
[1720822694982,45.0,138.99,138.96,11.63]
[1720822695778,56.63,138.99,138.89,21.4648]
[1720822695971,11.63,138.98,138.92,11.63]
[1720822696162,11.63,138.96,138.89,21.4648]
[1720822696362,11.63,138.96,138.9,11.63]
[1720822696568,45.0,138.95,138.86,15.3714]
[1720822697186,45.0,138.96,138.86,15.3714]
[1720822697774,45.0,138.96,138.87,20.0]
[1720822698096,45.0,138.96,138.87,43.27]
[1720822700893,52.196,138.97,138.86,15.3714]
[1720822701200,45.0,138.97,138.86,15.3714]
[1720822701365,10.0,138.94,138.82,7.5207502]
[1720822701560,10.0,138.94,138.79,23.27]
[1720822701561,45.0,138.93,138.79,23.27]
[1720822701785,52.198,138.93,138.79,23.27]
[1720822702888,45.0,138.93,138.79,23.27]
[1720822703272,45.0,138.93,138.8,20.0]
[1720822703473,7.1988,138.92,138.8,20.0]
[1720822703796,45.0,138.91,138.8,20.0]
[1720822704664,45.0,138.92,138.8,20.0]
[1720822707372,45.0,138.92,138.82,23.27]
[1720822707590,45.0,138.93,138.83,20.0]
[1720822709074,45.0,138.93,138.84,22.427]
[1720822709491,45.0,138.93,138.85,20.0]
[1720822710790,52.1978,138.93,138.85,20.0]
[1720822711582,45.0,138.93,138.85,20.0]
[1720822712408,52.1982,138.93,138.85,20.0]
[1720822716184,45.0,138.93,138.85,20.0]
[1720822717806,22.8135,139.0,138.9,15.4565]
[1720822718181,40.0078,139.0,138.9,15.4565]
[1720822718713,22.8135,139.0,138.91,20.0]
[1720822719280,30.0077,139.0,138.91,20.0]
[1720822720018,45.0,138.99,138.91,20.0]
[1720822720801,10.0,138.98,138.87,15.4565]
[1720822720980,7.1964,138.96,138.88,20.0]
[1720822721187,45.0,138.97,138.88,20.0]
[1720822721188,52.1959,138.97,138.88,20.0]
[1720822722085,7.1964,138.96,138.88,20.0]
[1720822722290,45.0,138.95,138.88,20.0]
[1720822723082,45.0,138.96,138.88,20.0]
[1720822723498,45.0,138.97,138.88,20.0]
[1720822729988,22.8135,139.0,138.88,20.0]
[1720822730425,10.0,139.02,138.9,15.4565]
[1720822730585,16.2122,139.03,138.9,15.4565]
[1720822730793,23.4052,139.03,138.9,15.4565]
[1720822731297,16.2122,139.03,138.91,20.0]
[1720822731820,23.4052,139.03,138.91,20.0]
[1720822732722,45.0,139.02,138.91,20.0]
[1720822735704,55.0,139.02,138.91,20.0]
[1720822736397,10.0,139.0,138.91,20.0]
[1720822736618,52.1949,138.99,138.9,15.4565]
[1720822737405,7.1964,138.96,138.9,15.4565]
[1720822737605,45.0,138.95,138.89,6.3806]
[1720822738798,45.0,138.95,138.87,15.5613]
[1720822744605,45.0,138.96,138.87,15.5613]
[1720822746608,52.1963,138.96,138.87,15.5613]
[1720822746912,7.1968,138.95,138.87,15.5613]
[1720822747114,45.0,138.94,138.87,15.5613]
[1720822748232,7.1959,138.97,138.87,15.5613]
[1720822749522,17.51556478,139.0,138.87,15.5613]
[1720822749727,7.1953,138.98,138.88,26.4284]
[1720822750202,7.1943,139.0,138.89,15.5613]
[1720822750403,7.1943,139.0,138.9,21.43868964]
[1720822750624,7.1939,139.01,138.9,21.43868964]
[1720822751409,7.1944,139.0,138.9,21.43868964]
[1720822751609,7.1939,139.01,138.9,21.43868964]
[1720822751931,7.1939,139.01,138.92,15.5613]
[1720822752116,7.1939,139.01,138.93,1.43839279]
[1720822753720,7.1942,139.0,138.93,1.43839279]
[1720822754012,45.0,138.99,138.93,1.43839279]
[1720822754606,45.0,138.99,138.92,15.5613]
[1720822757739,7.1931,139.03,138.92,15.5613]
[1720822758056,39.07160161,139.04,138.92,15.5613]
[1720822758057,7.1932,139.02,138.92,15.5613]
[1720822758720,7.1929,139.03,138.92,15.5613]
[1720822759045,45.0,139.02,138.92,15.5613]
[1720822759544,45.0,139.02,138.93,20.0]
[1720822760641,52.1932,139.02,138.93,20.0]
[1720822761940,45.0,139.02,138.93,20.0]
[1720822762135,45.0,139.02,138.94,21.8409]
[1720822762743,7.1925,139.04,138.94,21.8409]
[1720822762744,45.0,139.03,138.94,21.8409]
[1720822763328,52.1926,139.03,138.94,21.8409]
[1720822764630,56.62,139.03,138.97,11.62]
[1720822764928,56.62,139.03,138.98,12.00496372]
[1720822765454,56.62,139.03,138.98,11.62]
[1720822765629,45.0,139.03,138.95,20.0]
[1720822765828,56.62,139.03,138.98,11.62]
[1720822766441,11.62,139.02,138.95,20.0]
[1720822766629,45.0,139.01,138.95,20.0]
[1720822766962,11.62,139.0,138.94,33.4609]
[1720822767132,45.0,138.99,138.94,33.4609]
[1720822767727,11.62,138.98,138.94,21.8409]
[1720822767931,45.0,138.97,138.94,21.8409]
[1720822768234,56.62,138.97,138.94,21.8409]
[1720822768631,45.0,138.97,138.94,21.8409]
[1720822775559,45.0,138.97,138.94,15.4973]
[1720822780265,45.0,138.97,138.91,16.3749]
[1720822780935,45.0,138.98,138.91,16.3749]
[1720822781131,10.0,138.98,138.91,16.3749]
[1720822781356,45.0,138.97,138.87,22.9388]
[1720822781549,30.0,138.96,138.87,22.9388]
[1720822781749,45.0,138.95,138.87,22.9388]
[1720822782865,45.0,138.95,138.84,16.3749]
[1720822783171,52.1968,138.95,138.84,16.3749]
[1720822783340,52.1968,138.95,138.85,20.0]
[1720822784964,52.1968,138.95,138.84,16.3749]
[1720822786157,6.456,138.93,138.84,16.3749]
[1720822786368,45.0,138.92,138.84,16.3749]
[1720822786733,15.7899,138.91,138.8,22.9388]
[1720822786956,45.0,138.9,138.8,22.9388]
[1720822788041,7.2006,138.88,138.79,7.50517987]
[1720822788338,10.0,138.89,138.76,22.9388]
[1720822788339,51.456,138.87,138.76,22.9388]
[1720822789569,51.456,138.87,138.77,20.0]
[1720822789941,61.456,138.87,138.77,20.0]
[1720822790960,68.6571,138.87,138.76,22.9388]
[1720822791162,15.7899,138.86,138.76,22.9388]
[1720822791483,45.0,138.85,138.76,16.3749]
[1720822791838,55.0,138.85,138.73,29.8239]
[1720822792038,55.0,138.85,138.73,6.5639]
[1720822792842,62.2021,138.85,138.73,6.5639]
[1720822793844,62.2021,138.85,138.74,20.0]
[1720822794149,7.2026,138.84,138.74,20.0]
[1720822794349,45.0,138.83,138.74,20.0]
[1720822794548,62.2021,138.85,138.74,20.0]
[1720822796556,11.66,138.82,138.77,11.66]
[1720822796763,45.0,138.81,138.77,11.66]
[1720822797769,45.0,138.82,138.77,11.66]
[1720822798460,56.66,138.82,138.74,20.0]
[1720822798666,11.66,138.81,138.75,11.66]
[1720822798960,45.0,138.8,138.75,11.66]
[1720822800061,45.0,138.8,138.76,11.66]
[1720822800559,45.0,138.81,138.77,11.66]
[1720822800959,45.0,138.82,138.77,11.66]
[1720822801169,45.0,138.82,138.78,11.66]
[1720822801362,22.9914,138.86,138.74,20.0]
[1720822801562,11.66,138.85,138.79,11.66]
[1720822802266,11.66,138.84,138.79,11.66]
[1720822802670,22.9915,138.86,138.74,43.3]
[1720822802863,7.2021,138.85,138.74,43.3]
[1720822803575,45.0,138.84,138.74,43.3]
[1720822805261,6.456,138.87,138.75,16.5682]
[1720822805665,13.6571,138.87,138.76,20.0]
[1720822805976,6.456,138.87,138.76,20.0]
[1720822806152,7.202,138.85,138.76,20.0]
[1720822806555,45.0,138.84,138.76,20.0]
[1720822807662,45.0,138.85,138.76,20.0]
[1720822808481,45.0,138.85,138.75,16.5682]
[1720822809474,10.0,138.84,138.75,16.5682]
[1720822809677,7.2035,138.82,138.75,16.5682]
[1720822810066,45.0,138.81,138.75,16.5682]
[1720822810664,52.2041,138.81,138.73,6.5639]
[1720822812184,45.0,138.81,138.73,6.5639]
[1720822813374,7.2032,138.83,138.73,6.5639]
[1720822813375,45.0,138.82,138.73,6.5639]
[1720822814008,52.2037,138.82,138.73,6.5639]
[1720822817669,7.2042,138.81,138.73,6.5639]
[1720822817875,45.0,138.8,138.73,6.5639]
[1720822820095,52.2046,138.8,138.73,6.5639]
[1720822821267,52.2046,138.8,138.72,16.5682]
[1720822821268,7.2051,138.79,138.72,16.5682]
[1720822821522,45.0,138.78,138.72,16.5682]
[1720822822468,70.7061,138.78,138.66,22.9319]
[1720822822666,11.67,138.74,138.69,11.67]
[1720822822881,45.0,138.73,138.68,11.67]
[1720822823467,45.0,138.73,138.69,11.67]
[1720822823998,45.0,138.73,138.66,22.9319]
[1720822824303,45.0,138.73,138.68,11.67]
[1720822824608,45.0,138.73,138.66,22.9319]
[1720822824773,45.0,138.73,138.67,20.0]
[1720822826531,45.0,138.74,138.67,20.0]
[1720822829704,45.0,138.74,138.66,22.9319]
[1720822830575,52.2077,138.74,138.66,22.9319]
[1720822830771,45.0,138.74,138.66,22.9319]
[1720822832910,45.0,138.74,138.66,16.496]
[1720822834029,45.0,138.74,138.66,16.496]
[1720822835918,52.2079,138.74,138.66,16.496]
[1720822836214,45.0,138.74,138.66,16.496]
[1720822837591,45.0,138.73,138.66,16.496]
[1720822837791,52.2072,138.75,138.66,16.496]
[1720822842309,7.2077,138.74,138.66,16.496]
[1720822842642,45.0,138.73,138.66,16.496]
[1720822843303,45.0,138.74,138.66,16.496]
[1720822844741,11.67,138.73,138.67,11.67]
[1720822845023,45.0,138.72,138.67,11.67]
[1720822845532,45.0,138.72,138.68,11.67]
[1720822845901,45.0,138.72,138.67,11.67]
[1720822847409,45.0,138.72,138.68,11.67]
[1720822854132,45.0,138.72,138.67,11.67]
[1720822857647,52.2091,138.72,138.63,6.4359]
[1720822857808,11.67,138.71,138.66,11.67]
[1720822858016,45.0,138.7,138.66,11.67]
[1720822858816,45.0,138.7,138.65,11.67]
[1720822862214,45.0,138.7,138.63,6.4359]
[1720822862416,45.0,138.7,138.67,11.67]
[1720822862614,45.0,138.71,138.67,11.67]
[1720822863217,29.5432,138.76,138.7,11.67]
[1720822863438,11.67,138.75,138.7,11.67]
[1720822864418,11.67,138.75,138.64,46.68]
[1720822864722,11.67,138.75,138.65,20.0]
[1720822865431,18.8774,138.75,138.65,20.0]
[1720822865626,45.0,138.74,138.65,20.0]
[1720822866736,56.67,138.74,138.65,20.0]
[1720822868649,45.0,138.74,138.65,20.0]
[1720822868855,56.67,138.74,138.65,20.0]
[1720822872052,63.8777,138.74,138.65,20.0]
[1720822873757,56.67,138.74,138.65,20.0]
[1720822874756,45.0,138.74,138.65,20.0]
[1720822874928,45.0,138.75,138.72,11.67]
[1720822875537,45.0,138.75,138.71,11.67]
[1720822875736,45.0,138.75,138.7,11.67]
[1720822876964,45.0,138.75,138.71,11.67]
[1720822877128,45.0,138.75,138.65,20.0]
[1720822877449,56.67,138.75,138.7,11.67]
[1720822877833,56.67,138.75,138.65,20.0]
[1720822878033,18.8777,138.74,138.66,20.0]
[1720822878258,18.8777,138.74,138.69,11.67]
[1720822878259,45.0,138.73,138.69,11.67]
[1720822878457,45.0,138.73,138.68,11.67]
[1720822878978,45.0,138.73,138.69,11.67]
[1720822879132,45.0,138.74,138.64,66.68]
[1720822879332,45.0,138.75,138.72,11.67]
[1720822879557,22.3364,138.76,138.72,11.67]
[1720822880143,22.3364,138.76,138.71,11.67]
[1720822880542,34.0064,138.76,138.7,11.67]
[1720822880747,45.0,138.75,138.7,11.67]
[1720822881340,45.0,138.75,138.64,66.68]
[1720822881660,45.0,138.75,138.7,11.67]
[1720822883179,45.0,138.75,138.64,66.68]
[1720822883467,56.67,138.75,138.7,11.67]
[1720822884551,56.67,138.75,138.64,66.68]
[1720822884749,56.67,138.75,138.7,11.67]
[1720822886591,56.67,138.75,138.69,11.67]
[1720822887560,56.67,138.75,138.69,11.32925994]
[1720822887561,45.0,138.75,138.69,11.32925994]
[1720822887758,56.67,138.75,138.69,11.32925994]
[1720822887965,45.0,138.75,138.69,11.32925994]
[1720822888171,45.0,138.75,138.7,11.67]
[1720822893472,45.0,138.75,138.72,11.67]
[1720822893982,22.3364,138.76,138.72,11.67]
[1720822894167,22.3364,138.76,138.73,11.67]
[1720822895062,45.0,138.75,138.73,11.67]
[1720822897181,45.0,138.75,138.72,11.67]
[1720822897484,45.0,138.75,138.71,11.67]
[1720822898982,56.67,138.75,138.7,11.67]
[1720822899884,45.0,138.75,138.7,11.67]
[1720822900086,56.67,138.75,138.7,11.67]
[1720822902182,45.0,138.75,138.7,11.67]
[1720822902679,45.0,138.75,138.64,82.0213]
[1720822902869,45.0,138.75,138.7,11.67]
[1720822903462,56.67,138.75,138.7,11.67]
[1720822903869,56.67,138.75,138.64,64.91932122]
[1720822904057,56.67,138.75,138.69,11.67]
[1720822907283,56.67,138.75,138.64,64.91932122]
[1720822907284,45.0,138.75,138.7,11.67]
[1720822907465,56.67,138.75,138.7,11.67]
[1720822907878,56.67,138.75,138.69,11.67]
[1720822910789,56.67,138.75,138.7,11.67]
[1720822915901,56.67,138.75,138.64,64.91932122]
[1720822916081,56.67,138.75,138.7,11.67]
[1720822916407,11.67,138.74,138.68,11.67]
[1720822916584,45.0,138.73,138.68,11.67]
[1720822917103,56.67,138.73,138.68,11.67]
[1720822918394,56.67,138.73,138.64,15.3413]
[1720822918600,11.67,138.72,138.67,11.67]
[1720822918781,45.0,138.71,138.67,11.67]
[1720822920478,45.0,138.71,138.68,11.67]
[1720822921775,22.3364,138.76,138.7,11.67]
[1720822921973,22.0264,138.74,138.61,2.8872027]
[1720822922201,11.67,138.72,138.67,11.67]